bitfinex-derivatives/quotes_SOLF0:USTF0_20250202
["timestamp","ask_amount","ask_price","bid_price","bid_amount"]
[1738524324421,5.0783,197.05,196.92,5.0813]
[1738524324718,49.54048546,197.11,196.89,3.0126]
[1738524324918,0.03824779,197.0,196.97,0.0375368]
[1738524325120,5.08,196.98,196.97,3.68e-05]
[1738524325323,43.32658546,197.0,196.8,43.32658546]
[1738524326122,5.0785,197.04,196.91,5.0815]
[1738524326331,0.03409089,196.92,196.88,43.3642328]
[1738524326530,6.2139,197.11,196.91,43.32658546]
[1738524326828,49.54048546,197.11,196.92,9.4294]
[1738524327028,43.32658546,197.15,196.96,43.32658546]
[1738524327231,5.0787,197.03,196.93,3.0869]
[1738524327431,43.32658546,197.11,196.93,3.0869]
[1738524327627,43.32658546,197.07,196.93,3.0869]
[1738524327932,0.03881337,197.0,196.96,0.03893427]
[1738524328923,0.03881337,197.0,196.96,3.427e-05]
[1738524329127,43.36539883,197.0,196.96,3.427e-05]
[1738524329329,5.08,196.98,196.96,3.427e-05]
[1738524329531,43.36539883,197.0,196.81,86.24154806]
[1738524329732,43.32658546,196.9,196.81,83.23744806]
[1738524329926,43.32658546,196.9,196.75,83.23744806]
[1738524330133,43.32658546,196.94,196.75,83.23744806]
[1738524330325,5.0845,196.81,196.75,83.23744806]
[1738524330524,6.3964,197.0,196.77,43.32658546]
[1738524330729,43.32658546,197.06,196.86,43.32658546]
[1738524330924,43.32658546,197.02,196.82,43.32658546]
[1738524331233,0.03268937,196.98,196.83,2.9831]
[1738524331427,5.0807,196.95,196.83,5.9822]
[1738524331628,43.32658546,197.06,196.9,0.03310728]
[1738524331831,5.8,197.1,196.9,43.35969274]
[1738524332029,43.32658546,197.12,196.9,43.32658546]
[1738524332231,43.32658546,197.12,196.94,43.32658546]
[1738524332535,43.32658546,197.12,196.95,2.9831]
[1738524332834,43.32658546,197.06,196.95,2.9831]
[1738524333031,43.32658546,197.02,196.84,6.2374]
[1738524333232,43.32658546,196.98,196.84,2.9831]
[1738524333628,43.32658546,196.98,196.89,0.03418899]
[1738524333828,0.03303563,196.93,196.89,0.03418899]
[1738524334342,43.32658546,197.05,196.89,0.03418899]
[1738524334527,5.0807,196.95,196.89,0.03418899]
[1738524334726,100.58,197.06,196.86,43.32658546]
[1738524334931,100.58,197.06,196.9,43.32658546]
[1738524335132,43.32658546,197.05,196.86,43.32658546]
[1738524335328,43.32658546,197.01,196.84,2.9831]
[1738524335536,0.03279582,196.97,196.94,0.03354215]
[1738524335734,5.0804,196.96,196.94,4.215e-05]
[1738524337932,49.15938128,196.97,196.76,3.2932]
[1738524338134,43.32658546,196.92,196.76,3.2932]
[1738524338433,43.32658546,196.88,196.68,164.309586]
[1738524338637,43.32658546,196.88,196.58,55.89203961]
[1738524338638,43.32658546,196.8,196.66,83.23744806]
[1738524338831,5.0877,196.68,196.66,83.23744806]
[1738524339333,5.0877,196.68,196.66,74.75164806]
[1738524339531,48.41428546,196.68,196.66,39.75650166]
[1738524339734,5.0882,196.66,196.65,137.2081748]
[1738524340035,98.81447092,196.68,196.61,197.1715032]
[1738524340238,43.32658546,196.64,196.61,134.2318032]
[1738524340438,20.3592,196.62,196.61,109.44898689]
[1738524340638,43.32658546,196.64,196.46,406.90767354]
[1738524340838,43.32658546,196.59,196.46,406.90767354]
[1738524341032,101.92317092,196.59,196.48,24.70719664]
[1738524341232,43.32658546,196.49,196.48,24.70719664]
[1738524341436,5.0938,196.45,196.27,43.32658546]
[1738524341640,43.32658546,196.45,196.27,43.32658546]
[1738524341941,0.03477002,196.5,196.35,43.32658546]
[1738524342141,1.01739749,196.58,196.39,43.32658546]
[1738524342340,43.32658546,196.79,196.51,43.32658546]
[1738524342341,6.3613,196.68,196.51,43.32658546]
[1738524342839,6.3613,196.68,196.52,3.0561]
[1738524343047,0.03894998,196.61,196.52,3.0561]
[1738524343241,154.9117778,196.57,196.52,3.0561]
[1738524343643,154.9117778,196.57,196.53,0.0350543]
[1738524344151,0.03519805,196.56,196.53,0.0350543]
[1738524344549,136.8544778,196.57,196.54,43.32658546]
[1738524344751,49.12658546,196.73,196.54,31.36848393]
[1738524344952,5.8,196.73,196.54,31.36848393]
[1738524345152,0.82171355,196.74,196.62,43.32658546]
[1738524345349,6.64046468,196.75,196.65,5.0882]
[1738524345654,4.649e-05,196.72,196.7,43.32658546]
[1738524345850,43.20902266,196.78,196.77,5.0853]
[1738524346055,85.37668524,196.82,196.74,43.32658546]
[1738524346252,21.30052512,196.83,196.81,43.32658546]
[1738524346456,16.35672512,196.83,196.82,5.084]
[1738524346956,66.76738524,196.87,196.81,43.32658546]
[1738524347158,20.16062045,196.89,196.86,43.32658546]
[1738524347551,20.16062045,196.89,196.74,43.32658546]
[1738524347747,20.16062045,196.89,196.7,43.32658546]
[1738524347949,0.0378522,196.83,196.8,0.03334137]
[1738524349256,0.0378522,196.83,196.69,6.2543]
[1738524349459,0.0378522,196.83,196.77,43.32658546]
[1738524349648,3.1897,196.92,196.77,43.32658546]
[1738524349850,5.8,196.95,196.77,43.32658546]
[1738524350052,5.8,196.95,196.81,43.32658546]
[1738524350457,0.0338305,196.9,196.86,0.03811879]
[1738524350855,5.0801,196.98,196.79,48.41138546]
[1738524351051,2.9965,197.0,196.83,43.32658546]
[1738524351358,9.1544,197.1,196.91,43.32658546]
[1738524351760,3.0661,197.1,196.91,43.32658546]
[1738524351956,8.1429,197.1,196.91,48.40808546]
[1738524352152,3.0661,197.1,196.95,43.32658546]
[1738524352461,3.0661,197.1,196.87,6.5595]
[1738524352462,3.0661,197.1,196.9,43.32658546]
[1738524352654,0.03664469,197.04,197.01,0.03767085]
[1738524353256,0.03664469,197.04,196.87,6.5595]
[1738524353455,43.32658546,196.99,196.83,83.06707643]
[1738524354259,43.32658546,196.99,196.82,43.32658546]
[1738524354458,3.1606,197.02,196.82,43.32658546]
[1738524354649,0.03329337,196.93,196.89,0.03352005]
[1738524355054,3.1606,197.02,196.86,43.32658546]
[1738524355359,0.03560165,196.93,196.9,43.32658546]
[1738524355550,0.03560165,196.93,196.89,0.03542851]
[1738524355755,3.1606,197.02,196.86,43.32658546]
[1738524356059,0.03244691,196.93,196.9,43.32658546]
[1738524356357,0.03244691,196.93,196.89,0.03506279]
[1738524356560,3.1606,197.02,196.86,43.32658546]
[1738524356753,0.03421353,196.93,196.89,0.03330555]
[1738524357154,3.1606,197.02,196.76,83.06707643]
[1738524357155,3.1606,197.02,196.82,43.32658546]
[1738524357554,5.0815,196.92,196.89,0.03803556]
[1738524357758,0.03898825,196.93,196.89,0.03803556]
[1738524357959,3.1606,197.02,196.82,43.32658546]
[1738524358154,3.1606,197.02,196.89,0.0325966]
[1738524358358,0.0357578,196.93,196.89,0.0325966]
[1738524358559,3.1606,197.02,196.86,43.32658546]
[1738524358859,3.1606,197.02,196.9,43.32658546]
[1738524359261,3.1606,197.02,196.86,43.32658546]
[1738524359556,43.32658546,197.0,196.84,83.06707643]
[1738524360254,0.03535428,196.94,196.9,0.03300498]
[1738524360655,43.32658546,197.0,196.8,83.06707643]
[1738524360859,0.03482192,196.94,196.9,0.03575139]
[1738524361359,5.83482192,196.94,196.78,83.06707643]
[1738524361660,43.32658546,196.82,196.78,58.63637643]
[1738524361854,5.0848,196.8,196.76,138.44512739]
[1738524362059,43.32658546,196.78,196.73,172.8147302]
[1738524362265,43.32658546,196.74,196.73,63.31126334]
[1738524362567,43.32658546,196.74,196.48,6.3261]
[1738524362757,43.32658546,196.63,196.48,6.3261]
[1738524362956,43.32658546,196.59,196.43,42.08738627]
[1738524363161,43.32658546,196.59,196.52,207.3776763]
[1738524363356,58.59658546,196.79,196.59,0.03657119]
[1738524363357,43.32658546,196.71,196.59,0.03657119]
[1738524363561,43.32658546,196.79,196.59,0.03657119]
[1738524363762,43.32658546,196.79,196.57,43.32658546]
[1738524364160,10.8834,196.85,196.66,37.99888546]
[1738524364365,43.32658546,196.89,196.69,43.32658546]
[1738524364863,0.03361626,196.77,196.74,0.03635021]
[1738524365266,5.0835,196.85,196.68,5.0876]
[1738524365461,43.32658546,196.82,196.65,43.32658546]
[1738524365765,0.03390564,196.77,196.74,0.03845152]
[1738524366161,43.32658546,196.78,196.58,2.9783]
[1738524366366,43.32658546,196.71,196.58,2.9783]
[1738524366866,5.0887,196.64,196.51,3.2574]
[1738524367166,43.32658546,196.71,196.51,3.2574]
[1738524367360,5.0888,196.64,196.51,3.2574]
[1738524367567,0.03435673,196.59,196.56,0.03396074]
[1738524367964,5.0901,196.59,196.56,0.03396074]
[1738524368165,43.32658546,196.59,196.41,2.9942]
[1738524368472,5.0906,196.57,196.41,2.9942]
[1738524368662,43.32658546,196.55,196.41,2.9942]
[1738524369268,43.32658546,196.59,196.41,2.9942]
[1738524369466,0.03601498,196.5,196.46,0.03399457]
[1738524370067,43.32658546,196.51,196.31,43.32658546]
[1738524370269,0.0391467,196.5,196.31,43.32658546]
[1738524370564,43.32658546,196.46,196.27,43.32658546]
[1738524371166,43.32658546,196.46,196.33,5.0965]
[1738524371466,43.32658546,196.54,196.36,43.32658546]
[1738524371668,0.03701202,196.41,196.38,5.13268065]
[1738524371968,0.03701202,196.41,196.38,0.03738065]
[1738524372163,43.32658546,196.46,196.27,43.32658546]
[1738524372471,0.03606302,196.41,196.38,0.03361009]
[1738524373368,143.98658546,196.58,196.38,0.03361009]
[1738524373564,143.98658546,196.58,196.39,43.32658546]
[1738524373565,100.66,196.58,196.39,43.32658546]
[1738524373870,100.66,196.58,196.4,9.1524]
[1738524374066,143.98658546,196.58,196.4,9.1524]
[1738524374466,0.0369854,196.51,196.47,0.0366732]
[1738524374664,53.25726815,196.61,196.47,0.0366732]
[1738524374862,53.25726815,196.61,196.51,43.32658546]
[1738524375173,49.76858763,196.63,196.59,43.32658546]
[1738524375367,133.07697939,196.65,196.59,43.32658546]
[1738524375665,133.07697939,196.65,196.64,5.0887]
[1738524375968,106.48851443,196.67,196.64,43.32658546]
[1738524376171,15.29038483,196.67,196.66,48.41468546]
[1738524376470,27.15467885,196.78,196.66,48.41468546]
[1738524376471,27.15467885,196.78,196.66,44.34356908]
[1738524376664,6.3512,197.0,196.77,43.32658546]
[1738524376665,9.5934,197.0,196.77,43.32658546]
[1738524376871,9.5934,197.0,196.67,1.01693191]
[1738524376872,3.2422,197.0,196.82,43.32658546]
[1738524377168,43.32658546,196.98,196.79,43.32658546]
[1738524377370,43.32658546,196.85,196.67,1.01693191]
[1738524377868,6.4692,196.84,196.81,74.83333967]
[1738524378073,6.4692,196.84,196.81,57.18923967]
[1738524378274,6.4692,196.84,196.8,25.67109509]
[1738524378467,6.50363413,196.84,196.8,25.67109509]
[1738524378669,6.50363413,196.84,196.8,25.70624032]
[1738524379168,6.50363413,196.84,196.8,0.03514523]
[1738524379169,0.03443413,196.84,196.8,0.03514523]
[1738524379574,5.8,197.05,196.8,0.03514523]
[1738524379875,5.081,196.94,196.8,0.03514523]
[1738524380073,43.32658546,196.97,196.78,3.1265]
[1738524380270,43.32658546,197.01,196.78,3.1265]
[1738524380271,43.32658546,196.93,196.78,3.1265]
[1738524380567,43.32658546,196.89,196.68,43.32658546]
[1738524380872,0.034115,196.87,196.84,0.0372081]
[1738524381174,43.32658546,196.93,196.72,43.32658546]
[1738524381373,43.32658546,196.93,196.76,43.32658546]
[1738524381674,0.03562909,196.87,196.84,0.03660585]
[1738524382177,43.32658546,196.97,196.8,43.32658546]
[1738524382370,0.03220418,196.87,196.84,0.03389898]
[1738524382880,43.32658546,196.85,196.69,3.1265]
[1738524383170,43.32658546,196.81,196.64,6.4118]
[1738524383577,43.32658546,196.77,196.61,138.03306612]
[1738524383771,5.0867,196.72,196.61,138.03306612]
[1738524383972,43.32658546,196.77,196.61,138.03306612]
[1738524384167,0.03551629,196.71,196.67,0.03375553]
[1738524384373,6.1535,196.88,196.68,43.32658546]
[1738524384673,3.1383,196.88,196.72,43.32658546]
[1738524384872,5.0828,196.87,196.72,43.32658546]
[1738524385069,5.0828,196.87,196.61,138.03306612]
[1738524385070,43.32658546,196.97,196.76,43.32658546]
[1738524385266,43.32658546,196.93,196.72,43.32658546]
[1738524385469,43.32658546,196.93,196.76,43.32658546]
[1738524385677,0.03842094,196.84,196.81,0.03289909]
[1738524386072,43.32658546,196.93,196.73,3.1358]
[1738524386273,43.32658546,196.89,196.73,3.1358]
[1738524386472,0.03588555,196.84,196.81,0.03753929]
[1738524386669,43.32658546,196.93,196.81,0.03753929]
[1738524386870,0.03670028,196.84,196.81,0.03753929]
[1738524387075,0.03670028,196.84,196.76,43.32658546]
[1738524387274,43.32658546,196.93,196.73,3.1358]
[1738524387479,43.32658546,196.89,196.81,0.03802299]
[1738524387674,0.03768063,196.82,196.81,0.03802299]
[1738524387976,43.32658546,196.93,196.73,3.1358]
[1738524388176,0.03302964,196.83,196.8,0.03860916]
[1738524388772,43.32658546,196.93,196.73,3.1358]
[1738524389073,43.32658546,196.81,196.8,7.728e-05]
[1738524389376,43.32658546,196.81,196.6,43.32658546]
[1738524389773,5.0872,196.7,196.6,43.32658546]
[1738524390082,43.32658546,196.73,196.59,82.68041141]
[1738524390268,5.089,196.63,196.59,82.68041141]
[1738524390473,0.0386429,196.68,196.64,0.03870228]
[1738524390771,43.32658546,196.77,196.59,82.68041141]
[1738524390772,43.32658546,196.73,196.59,82.68041141]
[1738524391077,0.03287729,196.68,196.64,0.03706468]
[1738524391277,43.32658546,196.7,196.64,0.03706468]
[1738524391474,43.32658546,196.66,196.51,85.66211141]
[1738524391874,5.091,196.55,196.51,82.68041141]
[1738524392080,43.32658546,196.62,196.51,82.68041141]
[1738524392279,43.32658546,196.66,196.48,82.68041141]
[1738524392475,55.92398546,196.7,196.55,0.03759114]
[1738524392777,0.03215254,196.58,196.55,0.03759114]
[1738524392983,5.0925,196.5,196.48,82.68041141]
[1738524393575,5.0915,196.54,196.48,82.68041141]
[1738524393781,3.011,196.57,196.48,82.68041141]
[1738524393981,100.66,196.66,196.48,82.68041141]
[1738524393982,43.32658546,196.65,196.48,82.68041141]
[1738524394280,0.0336938,196.54,196.51,0.03857637]
[1738524394479,46.33758546,196.65,196.51,0.03857637]
[1738524394682,43.32658546,196.61,196.41,43.32658546]
[1738524394881,0.03821245,196.54,196.45,43.32658546]
[1738524395287,0.03821245,196.54,196.49,0.03209457]
[1738524396082,49.12658546,196.73,196.53,43.32658546]
[1738524396283,6.314,196.7,196.55,5.0908]
[1738524396483,5.8,196.73,196.53,43.32658546]
[1738524396679,5.0877,196.68,196.53,43.32658546]
[1738524396880,3.0568,196.76,196.57,43.32658546]
[1738524397283,52.70498546,196.81,196.64,5.0885]
[1738524397488,0.03881984,196.68,196.65,0.0383615]
[1738524397676,43.32658546,196.85,196.65,43.36494696]
[1738524397878,52.53958546,196.89,196.57,43.32658546]
[1738524398078,52.53958546,196.89,196.69,43.32658546]
[1738524398387,43.32658546,196.85,196.65,43.32658546]
[1738524398981,3.884e-05,196.77,196.73,0.03724558]
[1738524399185,3.884e-05,196.77,196.73,43.36383104]
[1738524399486,5.0825,196.88,196.8,5.0844]
[1738524399689,43.32658546,196.94,196.73,43.32658546]
[1738524400283,0.03846297,196.85,196.82,0.0337649]
[1738524400784,43.32658546,196.94,196.72,82.68041141]
[1738524401088,0.03827019,196.85,196.82,0.03218743]
[1738524401285,5.0837,196.84,196.82,0.03218743]
[1738524401484,43.32658546,196.9,196.72,82.68041141]
[1738524401787,0.03295546,196.85,196.81,4.41e-05]
[1738524401977,43.32658546,196.82,196.81,4.41e-05]
[1738524402181,3.299,196.84,196.66,138.03306612]
[1738524402382,3.299,196.84,196.66,130.05756612]
[1738524402383,43.32658546,196.73,196.66,130.05756612]
[1738524402578,43.32658546,196.69,196.66,130.05756612]
[1738524402779,5.0879,196.67,196.65,159.93643265]
[1738524402987,5.0879,196.67,196.65,0.68349687]
[1738524403182,43.32658546,196.68,196.59,17.76419509]
[1738524403487,43.36186452,196.68,196.44,43.32658546]
[1738524403687,0.03527906,196.68,196.62,0.03676145]
[1738524403886,43.32658546,196.72,196.62,0.03676145]
[1738524404186,0.03735614,196.67,196.56,43.32658546]
[1738524404483,43.32658546,196.76,196.48,43.32658546]
[1738524404484,5.8,196.78,196.65,0.03227097]
[1738524404689,5.8,196.78,196.6,43.32658546]
[1738524404987,43.32658546,196.9,196.6,43.36006425]
[1738524404988,43.32658546,196.84,196.6,43.36006425]
[1738524405180,43.32658546,196.84,196.64,43.32658546]
[1738524405386,43.32658546,196.84,196.68,43.32658546]
[1738524405387,20.02623188,196.74,196.68,43.32658546]
[1738524405685,5.17753188,196.74,196.68,43.32658546]
[1738524406083,3.188e-05,196.74,196.72,5.0864]
[1738524406281,3.18560065,196.76,196.72,43.32658546]
[1738524406482,80.10492752,196.79,196.73,5.0863]
[1738524406781,80.10492752,196.79,196.69,6.5062]
[1738524407088,80.10492752,196.79,196.73,5.0863]
[1738524407279,80.10492752,196.79,196.69,6.5062]
[1738524407484,0.03370279,196.78,196.74,0.03317802]
[1738524408188,0.03370279,196.78,196.68,43.32658546]
[1738524408385,0.03370279,196.78,196.64,43.32658546]
[1738524408692,43.32658546,196.78,196.56,43.32658546]
[1738524409193,0.03436015,196.69,196.65,0.03764014]
[1738524409491,43.32658546,196.74,196.52,43.32658546]
[1738524409791,5.0882,196.66,196.65,9.969e-05]
[1738524410095,43.32658546,196.7,196.48,43.32658546]
[1738524410393,43.32658546,196.66,196.44,43.32658546]
[1738524410593,43.32658546,196.62,196.44,43.32658546]
[1738524410792,3.0195,196.61,196.44,43.32658546]
[1738524410988,5.0919,196.52,196.51,0.03325375]
[1738524411288,43.32658546,196.54,196.31,43.32658546]
[1738524411490,6.1754,196.6,196.39,43.32658546]
[1738524411697,3.0195,196.61,196.47,43.32658546]
[1738524411895,6.68431505,196.74,196.55,43.32658546]
[1738524412200,3.2993,196.73,196.55,43.32658546]
[1738524412498,0.03413954,196.66,196.63,0.03513487]
[1738524412898,3.2993,196.73,196.63,0.03513487]
[1738524413093,0.03434629,196.66,196.63,0.03513487]
[1738524413400,43.32658546,196.72,196.51,43.32658546]
[1738524413589,5.0887,196.65,196.52,5.0917]
[1738524413795,0.03451164,196.66,196.47,43.32658546]
[1738524413996,43.32658546,196.72,196.55,43.32658546]
[1738524414296,3.2993,196.73,196.55,43.32658546]
[1738524414498,43.32658546,196.72,196.51,43.32658546]
[1738524414702,0.03403814,196.66,196.62,0.03794688]
[1738524415203,3.2993,196.73,196.52,43.32658546]
[1738524415500,0.03411649,196.66,196.62,0.03696718]
[1738524415700,43.32658546,196.65,196.43,43.32658546]
[1738524415900,5.0896,196.61,196.47,5.093]
[1738524416098,43.32658546,196.61,196.39,49.28088546]
[1738524416298,43.32658546,196.57,196.39,49.28088546]
[1738524416503,3.0804,196.56,196.39,50.29926725]
[1738524416904,0.03722344,196.49,196.46,0.03490902]
[1738524417300,3.0804,196.56,196.46,0.03490902]
[1738524417800,0.03692713,196.53,196.46,0.03490902]
[1738524418603,0.03692713,196.53,196.47,43.32658546]
[1738524419301,6.68431505,196.66,196.51,43.32658546]
[1738524419498,6.68431505,196.67,196.55,43.32658546]
[1738524420404,6.68431505,196.67,196.59,43.32658546]
[1738524420611,5.839e-05,196.67,196.66,43.32658546]
[1738524420907,31.24461864,196.72,196.66,86.65317092]
[1738524421204,46.52990973,196.8,196.71,43.32658546]
[1738524421507,1.18e-05,196.79,196.77,43.32658546]
[1738524421708,167.35930519,196.88,196.73,43.32658546]
[1738524421908,1.01589881,196.87,196.69,43.32658546]
[1738524422107,0.03553713,196.8,196.76,0.03223181]
[1738524422310,5.0867,196.72,196.59,48.41648546]
[1738524422609,43.32658546,196.78,196.59,43.32658546]
[1738524422806,43.32658546,196.78,196.55,43.32658546]
[1738524423005,43.32658546,196.74,196.51,43.32658546]
[1738524423206,43.32658546,196.74,196.55,43.32658546]
[1738524423602,43.32658546,196.74,196.71,83.58806309]
[1738524423910,9.2682,196.79,196.71,83.58806309]
[1738524424202,49.12658546,197.01,196.71,126.9472088]
[1738524424409,3.265e-05,196.74,196.72,5.0866]
[1738524424609,9.2682,196.92,196.71,83.58806309]
[1738524424807,43.32658546,196.87,196.71,83.58806309]
[1738524425110,43.32658546,196.83,196.72,108.22168016]
[1738524425311,43.32658546,196.87,196.72,108.22168016]
[1738524425504,43.32658546,196.87,196.75,83.58806309]
[1738524425903,5.0856,196.76,196.75,64.81101763]
[1738524426108,0.03893155,196.83,196.75,64.81101763]
[1738524426301,5.8,196.87,196.75,64.81101763]
[1738524426505,5.0844,196.81,196.75,64.81101763]
[1738524426706,5.8,196.87,196.75,64.81101763]
[1738524427011,5.0852,196.78,196.71,24.63361707]
[1738524427302,0.03508612,196.83,196.79,0.03660929]
[1738524427505,5.0823,196.89,196.81,5.0841]
[1738524427711,1.01584721,196.88,196.76,43.32658546]
[1738524427906,0.03603755,196.83,196.79,0.03852899]
[1738524428104,3.755e-05,196.83,196.82,5.084]
[1738524428303,8.476e-05,196.88,196.8,43.32658546]
[1738524429105,5.0798,196.99,196.91,5.0816]
[1738524429410,6.2787,197.01,196.8,5.8]
[1738524429604,0.0348541,196.97,196.87,139.31343848]
[1738524429804,0.0348541,196.97,196.89,0.03320585]
[1738524429805,43.32658546,196.94,196.89,0.03320585]
[1738524430212,43.35988935,196.94,196.89,0.03320585]
[1738524430409,0.03330389,196.94,196.89,0.03320585]
[1738524431316,3.89e-06,196.94,196.92,5.0814]
[1738524431513,1.01466186,197.11,196.91,43.32658546]
[1738524432012,1.01466186,197.11,196.87,43.32658546]
[1738524432308,1.01466186,197.11,196.81,139.31343848]
[1738524432309,43.32658546,197.01,196.82,43.32658546]
[1738524432913,0.03260532,196.93,196.9,0.03538241]
[1738524433213,0.03260532,196.93,196.92,199.01513366]
[1738524433515,43.32658546,197.05,196.92,199.01513366]
[1738524433813,3.1311,197.04,196.92,199.01513366]
[1738524434203,3.1311,197.04,196.86,43.32658546]
[1738524434411,5.9558,197.03,196.82,182.09703504]
[1738524434610,0.03307085,196.97,196.93,0.03811819]
[1738524435006,7.085e-05,196.97,196.95,5.0806]
[1738524435618,5.0778,197.07,197.0,5.0791]
[1738524435813,44.14680098,197.13,196.93,0.03811819]
[1738524436014,44.14680098,197.13,196.9,43.32658546]
[1738524436515,44.14680098,197.13,196.94,83.04509351]
[1738524436715,0.03280082,197.03,197.0,0.03618024]
[1738524437112,43.32658546,197.09,196.94,83.04509351]
[1738524437315,43.32658546,197.05,196.93,83.04509351]
[1738524437518,0.03356329,197.03,197.0,8.525e-05]
[1738524437812,5.0791,197.01,197.0,8.525e-05]
[1738524438017,48.40568546,197.01,197.0,8.525e-05]
[1738524438317,43.32658546,197.01,196.93,83.04509351]
[1738524438512,5.0808,196.95,196.93,83.04509351]
[1738524438717,5.0808,196.95,196.93,56.12899351]
[1738524438919,5.0808,196.95,196.93,24.76999351]
[1738524439109,43.32658546,197.01,196.78,43.32658546]
[1738524439311,6.5581,197.04,196.86,43.32658546]
[1738524439512,0.03520409,196.96,196.92,0.03352788]
[1738524439719,6.5581,197.04,196.92,0.03352788]
[1738524440020,43.32658546,197.13,196.96,5.0803]
[1738524440225,5.9629,197.1,196.94,43.32658546]
[1738524440410,5.9629,197.1,196.9,43.32658546]
[1738524440615,43.32658546,197.09,196.91,3.2848]
[1738524441214,0.03208412,197.02,196.98,0.03839093]
[1738524441916,0.03208412,197.02,196.81,5.78]
[1738524441917,43.32658546,197.01,196.82,43.32658546]
[1738524442118,43.32658546,196.97,196.8,3.2848]
[1738524442421,6.0023,196.96,196.76,2.979]
[1738524442623,6.0023,196.96,196.82,43.32658546]
[1738524443019,43.32658546,196.95,196.77,3.2848]
[1738524443225,43.36407745,196.91,196.77,3.2848]
[1738524443525,0.03749199,196.91,196.78,43.32658546]
[1738524443725,6.0023,196.96,196.82,43.32658546]
[1738524443922,11.0827,196.96,196.82,43.32658546]
[1738524444121,6.0023,196.96,196.82,43.32658546]
[1738524444324,6.0023,196.96,196.91,5.0816]
[1738524444523,0.03825342,196.91,196.87,0.03858144]
[1738524444822,0.03825342,196.91,196.89,5.0822]
[1738524445130,43.32658546,197.03,196.82,43.32658546]
[1738524445325,0.03742373,196.92,196.88,0.03666868]
[1738524445824,43.32658546,196.99,196.79,43.32658546]
[1738524446027,0.03381461,196.92,196.88,0.03463709]
[1738524447125,5.0821,196.9,196.88,0.03463709]
[1738524447318,0.03381461,196.92,196.88,0.03463709]
[1738524448425,0.03381461,196.92,196.9,5.0819]
[1738524448626,0.03381461,196.92,196.88,0.03463709]
[1738524449725,0.03381461,196.92,196.75,43.32658546]
[1738524450125,43.32658546,197.01,196.79,43.32658546]
[1738524451021,0.03311975,196.92,196.88,0.03670397]
[1738524451327,6.4892,197.02,196.88,0.03670397]
[1738524451530,43.32658546,197.09,196.91,43.32658546]
[1738524451823,43.32658546,197.13,196.95,43.32658546]
[1738524452025,5.0767,197.11,197.05,5.0781]
[1738524452223,6.3384,197.2,196.99,43.32658546]
[1738524452525,0.03661683,197.1,197.07,5.0775]
[1738524452730,0.03661683,197.1,197.06,0.03829189]
[1738524452931,3.1522,197.33,197.15,43.32658546]
[1738524453122,0.91328372,197.32,197.19,43.32658546]
[1738524453327,43.32658546,197.39,197.2,3.1874]
[1738524453722,5.0699,197.37,197.25,5.0728]
[1738524454036,2.9749,197.44,197.2,3.1874]
[1738524454221,0.03526183,197.31,197.28,0.03207233]
[1738524454529,0.03526183,197.31,197.15,43.32658546]
[1738524454728,43.32658546,197.33,197.16,3.1874]
[1738524455129,43.32658546,197.37,197.16,3.1874]
[1738524455826,43.32658546,197.41,197.23,43.32658546]
[1738524456021,0.03716983,197.28,197.25,0.03456451]
[1738524456326,43.32658546,197.41,197.23,43.32658546]
[1738524456930,5.0698,197.38,197.28,5.0721]
[1738524457125,43.32658546,197.37,197.18,43.32658546]
[1738524457326,43.32658546,197.33,197.16,3.1874]
[1738524457528,5.0723,197.28,197.19,5.0744]
[1738524458031,5.0723,197.28,197.23,0.03582809]
[1738524458231,0.03747089,197.25,197.23,0.03582809]
[1738524458731,43.32658546,197.41,197.23,0.03582809]
[1738524459129,43.32658546,197.41,197.22,43.32658546]
[1738524459931,0.03364435,197.33,197.3,0.03856525]
[1738524460131,5.0713,197.32,197.3,6.525e-05]
[1738524460426,5.0713,197.32,197.16,3.1874]
[1738524460427,6.5305,197.32,197.16,3.1874]
[1738524461029,5.0753,197.16,197.08,143.32784502]
[1738524461223,43.32658546,197.17,197.1,75.32055561]
[1738524461424,43.32658546,197.13,197.1,33.28565912]
[1738524461624,5.0771,197.09,197.07,174.38151659]
[1738524461820,43.32658546,197.08,196.99,24.63361707]
[1738524462022,48.40498546,197.04,197.03,199.0411286]
[1738524462230,5.76,197.17,197.03,199.0411286]
[1738524462231,43.32658546,197.08,197.03,199.0411286]
[1738524462432,43.32658546,197.08,197.04,0.03605883]
[1738524462622,0.03876162,197.07,197.04,0.03605883]
[1738524462933,43.32658546,197.2,197.04,0.03605883]
[1738524463233,49.08658546,197.28,197.05,43.32658546]
[1738524463428,49.08658546,197.28,197.09,43.32658546]
[1738524463623,54.15888546,197.28,197.16,5.0752]
[1738524463830,5.76,197.28,197.13,43.32658546]
[1738524464029,5.76,197.28,197.09,43.32658546]
[1738524464232,5.76,197.28,197.13,43.32658546]
[1738524464433,0.03583854,197.22,197.19,0.03453755]